bitfinex/quotes_ETHUSD_20251015
["timestamp","ask_amount","ask_price","bid_price","bid_amount"]
[1760535590030,0.2315,4083.4,4082.4,0.2155]
[1760535590031,1.728,4083.2,4083.1,0.1224]
[1760535590237,2.607,4083.2,4083.1,0.1224]
[1760535590487,2.44924483,4082.9,4082.6,0.1224]
[1760535590689,0.2228,4082.7,4082.1,0.6]
[1760535590878,2.44952618,4082.5,4082.1,0.6]
[1760535591073,2.44954046,4082.4,4082.1,0.6]
[1760535591300,4.4584,4082.6,4082.1,0.6]
[1760535591485,2.44947948,4082.5,4082.1,0.6]
[1760535591690,2.44965949,4082.2,4082.1,0.6]
[1760535591891,4.29635949,4082.2,4082.1,0.6]
[1760535592205,1.728,4082.2,4082.1,0.6]
[1760535592383,4.334,4082.2,4082.1,0.6]
[1760535592714,2.606,4082.2,4082.1,3.7279195]
[1760535592904,2.606,4082.2,4082.1,1.21777466]
[1760535593107,2.606,4082.2,4082.1,0.6]
[1760535593284,4.334,4082.2,4082.1,0.6]
[1760535593635,6.90445949,4082.2,4082.1,0.6]
[1760535594145,1.728,4082.2,4082.1,0.6]
[1760535594431,4.336,4082.2,4082.1,0.602]
[1760535594731,6.90645949,4082.2,4082.1,0.602]
[1760535595592,1.728,4082.2,4082.1,0.602]
[1760535595791,2.607,4082.2,4082.1,0.602]
[1760535595993,2.607,4082.2,4082.1,3.0517195]
[1760535596215,0.2304,4083.8,4082.1,1.83035939]
[1760535596419,0.2304,4083.8,4082.2,2.44965949]
[1760535596420,2.607,4083.5,4082.2,2.44965949]
[1760535596603,2.607,4083.5,4082.6,2.44940594]
[1760535596924,4.335,4083.5,4082.2,0.4627]
[1760535597108,2.607,4083.5,4082.2,0.4627]
[1760535597427,2.606,4083.4,4083.1,2.44907286]
[1760535597608,2.606,4083.4,4083.1,2.66459427]
[1760535597803,2.606,4083.4,4082.9,2.44922938]
[1760535598007,2.606,4083.4,4082.9,2.44922703]
[1760535598197,2.606,4083.4,4082.7,0.4627]
[1760535598525,2.606,4083.4,4082.2,2.44962583]
[1760535598526,1.728,4083.3,4082.2,2.453474]
[1760535598826,1.728,4083.3,4082.6,2.44936587]
[1760535599218,1.728,4083.3,4082.7,2.44935526]
[1760535599408,1.728,4083.3,4082.6,2.44940608]
[1760535599608,4.17701423,4083.3,4082.4,2.44949066]
[1760535599803,1.728,4083.3,4082.2,0.8017974]
[1760535600004,1.728,4083.3,4082.2,0.4747]
[1760535600210,1.728,4083.3,4082.1,0.8175]
[1760535600410,2.606,4083.4,4082.2,2.44960823]
[1760535600609,2.606,4083.4,4082.1,0.8175]
[1760535600610,2.606,4083.4,4082.1,0.602]
[1760535600820,2.603,4083.3,4082.3,0.2212]
[1760535601018,2.603,4083.3,4082.4,0.13223966]
[1760535601217,2.603,4083.3,4082.1,0.602]
[1760535601218,1.8519,4083.2,4082.1,0.602]
[1760535601435,2.44934319,4082.8,4082.1,0.602]
[1760535601640,0.1239,4083.2,4082.1,0.602]
[1760535601641,1.728,4082.6,4082.1,0.602]
[1760535601839,2.604,4082.5,4082.4,2.44953948]
[1760535602004,1.728,4083.5,4082.5,0.1224]
[1760535602208,1.728,4083.3,4083.2,2.44905956]
[1760535602431,6.0,4083.6,4083.2,2.44905956]
[1760535602432,6.0,4083.6,4083.5,3.08247963]
[1760535602600,0.1225,4085.8,4083.6,5.53123932]
[1760535602806,0.001,4085.8,4084.0,0.6336]
[1760535603046,0.001,4085.8,4083.6,0.4747]
[1760535603047,0.3498,4085.7,4084.1,0.59278398]
[1760535603246,2.44773764,4085.5,4083.8,0.2212]
[1760535603453,0.3498,4085.7,4083.9,0.6336]
[1760535603746,0.001,4085.8,4084.2,2.44840908]
[1760535603747,0.2254,4085.6,4084.2,2.44840908]
[1760535603903,2.44798734,4085.0,4083.8,0.2212]
[1760535604103,2.605,4084.9,4083.8,0.2212]
[1760535604306,1.728,4084.8,4083.9,0.74169685]
[1760535604542,1.728,4084.8,4084.4,2.44832281]
[1760535604843,1.103,4086.0,4083.9,0.4747]
[1760535604844,2.604,4084.7,4084.6,2.44822014]
[1760535605050,2.604,4084.7,4083.9,0.6336]
[1760535605204,2.604,4084.7,4084.6,2.44822014]
[1760535605749,2.604,4084.7,4084.6,2.92292014]
[1760535606051,2.604,4084.7,4084.6,1.01182224]
[1760535606250,2.604,4084.7,4083.9,0.6336]
[1760535606405,2.604,4084.7,4084.4,2.4483276]
[1760535606613,2.604,4084.7,4084.5,2.44827114]
[1760535606819,2.604,4084.7,4084.6,2.92292014]
[1760535607172,2.604,4084.7,4083.8,0.2212]
[1760535607459,1.728,4084.6,4083.4,0.2212]
[1760535607616,1.9563,4084.6,4083.7,2.44870126]
[1760535607816,1.9563,4084.6,4083.4,0.2212]
[1760535608017,2.44848648,4084.2,4083.4,0.2212]
[1760535608218,2.603,4084.1,4083.1,0.2212]
[1760535608430,1.728,4084.0,4083.0,0.2212]
[1760535608632,2.44878868,4083.7,4082.3,0.02449599]
[1760535608919,2.44870541,4083.8,4082.5,2.44943623]
[1760535609151,0.225,4083.9,4082.8,2.44929098]
[1760535609348,2.44856426,4084.1,4083.1,2.44907441]
[1760535609575,1.728,4083.9,4082.9,0.48987016]
[1760535609886,1.728,4083.9,4082.6,0.4747]
[1760535609887,1.9508,4083.9,4083.1,2.44911604]
[1760535610090,2.0695,4083.9,4082.2,0.2212]
[1760535610260,1.9508,4083.9,4082.6,0.4539]
[1760535610649,1.9508,4083.9,4082.2,0.6751]
[1760535611045,0.2228,4083.9,4082.7,2.44930155]
[1760535611256,1.728,4083.7,4082.8,0.24493015]
[1760535611585,2.44924958,4082.9,4082.2,0.2212]
[1760535611741,2.44924958,4082.9,4082.1,0.602]
[1760535611742,1.728,4082.7,4082.1,0.602]
[1760535611946,1.728,4082.7,4082.2,0.2336]
[1760535612392,0.1197,4083.7,4082.2,0.2336]
[1760535612393,1.728,4083.6,4082.2,0.2336]
[1760535612603,1.728,4083.4,4082.2,0.4539]
[1760535612758,1.728,4083.4,4082.1,0.8356]
[1760535612759,1.728,4083.4,4082.3,0.12895]
[1760535613076,1.728,4083.4,4082.4,0.47839539]
[1760535613385,1.728,4083.4,4082.5,0.6336]
[1760535613556,1.728,4083.4,4082.6,4.89883896]
[1760535613755,1.728,4083.4,4082.5,3.08304835]
[1760535613961,0.2228,4083.9,4082.5,3.08304835]
[1760535613962,1.103,4084.4,4082.6,0.36658984]
[1760535614459,2.44839997,4084.3,4082.6,0.36658984]
[1760535614661,1.103,4084.4,4082.3,0.12895]
[1760535614863,1.103,4084.4,4082.4,1.11199538]
[1760535615195,1.103,4084.4,4082.5,0.02449477]
[1760535615503,2.6,4084.3,4082.7,0.6336]
[1760535615644,2.6,4084.3,4082.8,0.47839299]
[1760535615846,2.6,4084.3,4082.9,0.6336]
[1760535616052,2.44869816,4083.9,4082.7,2.44932875]
[1760535616248,1.728,4084.2,4082.8,0.72332587]
[1760535616559,1.728,4084.2,4083.5,2.44883001]
[1760535616777,2.44856922,4084.1,4083.2,2.44904597]
[1760535617104,1.728,4084.2,4082.4,5.199005]
[1760535617105,2.4488054,4083.7,4082.4,5.199005]
[1760535617283,1.728,4084.2,4082.8,2.4492489]
[1760535617488,2.44883258,4083.6,4082.7,2.4493369]
[1760535617671,2.4489396,4083.4,4082.8,0.24493369]
[1760535618003,2.599,4083.3,4082.4,2.44953948]
[1760535618201,2.598,4083.2,4083.1,2.44911954]
[1760535618382,2.598,4083.2,4082.5,0.4539]
[1760535618582,2.598,4083.2,4083.1,2.68271954]
[1760535618779,2.598,4083.2,4082.5,2.90337246]
[1760535619104,2.598,4083.2,4083.0,2.44917868]
[1760535619292,2.598,4083.2,4083.1,3.13661954]
[1760535619683,2.598,4083.2,4082.8,2.44929931]
[1760535619871,2.598,4083.2,4082.6,0.30323225]
[1760535620070,5.04706679,4083.2,4082.6,0.30323225]
[1760535620402,5.04706679,4083.2,4082.3,2.57854855]
[1760535620403,2.598,4083.2,4082.3,2.57854855]
[1760535620582,2.598,4083.2,4082.5,2.44943506]
[1760535620896,2.598,4083.2,4082.5,2.44946367]
[1760535621071,2.598,4083.2,4082.4,2.44953948]
[1760535621268,2.598,4083.2,4083.1,2.68271954]
[1760535621519,1.103,4084.4,4083.6,2.44880016]
[1760535621739,1.103,4084.4,4083.2,2.44905956]
[1760535621740,4.17653107,4084.1,4083.2,2.44905956]
[1760535621877,4.17653107,4084.1,4083.1,1.20069201]
[1760535621878,2.44858858,4084.0,4083.1,2.96229655]
[1760535622200,1.728,4083.9,4083.1,0.74679201]
[1760535622408,1.728,4084.1,4083.9,0.1224]
[1760535622572,2.44787014,4085.2,4083.9,0.1224]
[1760535622903,1.2246,4085.4,4084.2,2.57085991]
[1760535623090,0.2233,4085.7,4084.2,3.89195991]
[1760535623290,0.1216,4086.2,4084.4,0.6336]
[1760535623589,0.001,4086.3,4085.7,0.2336]
[1760535623794,0.114,4085.8,4085.7,0.1216]
[1760535623999,2.5615011,4085.8,4085.7,0.1216]
[1760535624205,0.114,4085.8,4085.7,0.1216]
[1760535625078,0.114,4085.8,4085.7,2.569161]
[1760535625600,0.001,4085.8,4085.7,3.2799771]
[1760535625910,0.316,4085.8,4085.7,16.3354691]
[1760535626113,0.316,4085.8,4085.7,3.9135771]
[1760535626690,0.316,4085.8,4085.7,9.3887291]
[1760535626890,0.316,4085.8,4085.7,3.9135771]
[1760535627091,0.3152,4085.8,4085.7,1.3444161]
[1760535627415,0.3152,4085.8,4085.7,3.535061]
[1760535627609,0.3152,4085.8,4085.7,8.084393]
[1760535627815,0.3152,4085.8,4085.7,7.166605]
[1760535628112,0.001,4086.3,4086.2,2.44726151]
[1760535628327,0.001,4086.3,4086.2,5.20877851]
[1760535628619,0.001,4086.3,4086.2,4.32373388]
[1760535629226,0.001,4086.3,4086.2,12.76096588]
[1760535629530,1.002,4087.2,4086.6,13.81076397]
[1760535629735,1.002,4087.2,4087.1,9.24531261]
[1760535630035,1.002,4087.2,4086.8,0.2336]
[1760535630197,1.002,4087.2,4086.5,0.4539]
[1760535630198,1.002,4087.2,4086.6,0.6336]
[1760535630513,0.001,4088.0,4087.2,2.44666275]
[1760535630702,0.001,4088.0,4087.9,2.44624379]
[1760535630903,0.001,4088.0,4087.9,3.07984379]
[1760535631105,2.595,4088.0,4087.9,3.53374379]
[1760535631286,2.595,4088.0,4087.9,5.78007779]
[1760535631907,2.595,4088.0,4087.9,5.69890779]
[1760535632108,2.595,4088.0,4087.9,4.34826974]
[1760535632308,2.595,4088.0,4087.9,6.78648574]
[1760535632510,2.595,4088.0,4087.9,8.78829474]
[1760535632910,2.595,4088.0,4087.9,1.90202595]
[1760535633121,2.595,4088.0,4087.7,0.6336]
[1760535633494,2.595,4088.0,4087.6,0.6336]
[1760535633695,2.595,4088.0,4087.9,2.44624379]
[1760535633914,0.001,4088.0,4087.9,3.53374379]
[1760535634218,2.594,4088.0,4087.9,3.53374379]
[1760535634418,2.594,4088.0,4087.9,4.13175089]
[1760535635196,2.594,4088.0,4087.9,1.6855071]
[1760535635514,2.594,4088.0,4087.9,4.13175089]
[1760535635895,2.594,4088.0,4087.9,7.62250689]
[1760535636090,2.594,4088.0,4087.9,6.18350689]
[1760535636296,2.594,4088.0,4087.9,7.91150689]
[1760535636516,2.594,4088.0,4087.9,13.12317789]
[1760535636719,2.4470131,4086.7,4084.7,0.2336]
[1760535637038,10.00581456,4086.5,4084.7,0.2336]
[1760535637220,10.00581456,4086.5,4084.9,5.273364]
[1760535637221,4.009,4086.4,4084.9,5.273364]
[1760535637530,10.06207007,4086.6,4084.8,0.4539]
[1760535637739,2.44708185,4086.5,4084.7,0.2336]
[1760535637896,2.44708185,4086.5,4084.3,0.4539]
[1760535637897,9.93597007,4085.9,4084.3,0.4539]
[1760535638096,9.93597007,4085.9,4084.0,0.2336]
[1760535638292,9.93597007,4085.3,4083.2,5.984008]
[1760535638533,2.7013,4085.2,4083.3,0.6671508]
[1760535638837,9.93597007,4084.7,4083.1,0.4539]
[1760535639038,9.93597007,4084.1,4082.5,2.008649]
[1760535639193,0.3152,4084.6,4082.5,2.008649]
[1760535639389,2.599,4084.5,4082.7,10.544894]
[1760535639639,2.599,4084.4,4082.8,0.4539]
[1760535639923,5.0473449,4084.4,4082.9,12.88383972]
[1760535640113,2.44851973,4084.2,4083.0,1.35322649]
[1760535640289,0.099,4084.1,4082.4,0.002]
[1760535640490,2.44897932,4083.4,4082.4,0.002]
[1760535640828,2.599,4083.3,4082.4,0.002]
[1760535640995,2.598,4083.2,4082.4,0.002]
[1760535641696,0.1259,4082.5,4082.4,0.002]
[1760535642317,4.40267948,4082.5,4082.4,0.002]
[1760535643096,5.03627948,4082.5,4082.4,0.002]
[1760535643430,3.08325949,4082.2,4082.1,1e-08]
[1760535643594,7.41025949,4082.2,4082.1,1e-08]
[1760535643790,2.4500196,4081.6,4081.5,1e-08]
[1760535644001,5.2800196,4081.6,4081.5,1e-08]
[1760535644208,5.3783196,4081.6,4081.5,1e-08]
[1760535644813,6.0119196,4081.6,4081.5,1e-08]
[1760535645043,2.6910215,4081.5,4080.0,0.0123]
[1760535645338,4.39392032,4080.1,4080.0,0.0123]
[1760535645498,4.545,4080.1,4080.0,0.0123]
[1760535645692,7.09532032,4080.1,4080.0,0.0123]
[1760535646192,7.09532032,4080.1,4078.2,2.45204417]
[1760535646193,7.72892032,4080.1,4077.4,2.45249346]
[1760535646397,0.6336,4079.9,4077.5,0.71017418]
[1760535646592,1.728,4079.7,4077.7,2.45236285]
[1760535646823,1.728,4079.5,4077.9,2.45224257]
[1760535647014,2.66594443,4080.1,4077.5,0.24524935]
[1760535647015,1.103,4079.9,4078.8,2.4516472]
[1760535647220,2.45134088,4079.4,4079.3,0.1224]
[1760535647449,8.00284772,4080.4,4077.0,0.2143]
[1760535647450,0.3294215,4080.0,4078.7,0.1224]
[1760535647649,0.6336,4079.3,4077.0,0.6547]
[1760535647855,0.6336,4078.7,4076.2,0.12813876]
[1760535648146,4.3396,4078.6,4077.2,2.45265904]
[1760535648346,4.3396,4078.6,4077.3,0.2452659]
[1760535648562,4.3396,4078.6,4076.3,0.4404]
[1760535648563,0.6336,4077.7,4075.4,0.2143]
[1760535648768,0.6336,4077.5,4075.4,0.2143]
[1760535648920,0.6336,4077.3,4075.4,0.2143]
[1760535649319,3.707,4077.2,4075.6,2.45360158]
[1760535649523,1.728,4077.1,4075.4,0.6547]
[1760535649918,1.728,4077.1,4074.8,0.6547]
[1760535650123,0.0273,4077.5,4075.2,2.45385583]
[1760535650356,0.6336,4077.6,4074.8,0.2143]
[1760535650357,14.578252,4080.1,4077.3,0.002]
[1760535650548,0.0265,4078.0,4077.3,0.002]
[1760535650748,2.3616,4077.8,4077.3,0.002]
[1760535651058,1.728,4077.6,4077.3,0.002]
[1760535651365,1.103,4078.0,4077.3,0.002]
[1760535651518,4.335,4077.9,4077.3,0.002]
[1760535651723,2.45251072,4077.5,4077.3,0.002]
[1760535651923,2.4527839,4077.0,4076.9,0.002]
[1760535652222,4.8143839,4077.0,4076.9,0.002]
[1760535652419,5.439,4077.0,4076.9,0.002]
[1760535652656,2.45155213,4079.1,4076.9,0.002]
[1760535652657,1.104,4077.8,4076.9,0.002]
[1760535652820,2.607,4077.7,4076.9,0.002]
[1760535653024,2.608,4077.6,4077.0,0.4404]
[1760535653250,2.608,4077.6,4077.1,0.2143]
[1760535653452,2.608,4077.6,4077.2,2.45266359]
[1760535653628,2.608,4077.6,4077.3,0.55601391]
[1760535653830,2.608,4077.6,4077.2,2.45260719]
[1760535654029,2.608,4077.6,4077.1,0.2143]
[1760535654363,2.608,4077.5,4077.2,2.89673449]
[1760535654560,1.104,4079.4,4078.3,2.45194885]
[1760535654757,2.608,4079.3,4078.4,0.2142]
[1760535655055,1.104,4079.6,4078.2,0.4441]
[1760535655056,2.608,4079.2,4078.2,0.4441]
[1760535655267,2.608,4079.2,4078.2,2.89615497]
[1760535655438,2.608,4079.2,4078.3,0.3110355]
[1760535655831,2.608,4079.2,4078.4,2.45194193]
[1760535656023,2.608,4079.2,4078.5,2.45187067]
[1760535656356,1.104,4080.6,4079.1,0.2142]
[1760535656559,8.50990329,4081.8,4079.2,0.4441]
[1760535656560,1.103,4080.7,4079.2,0.4441]
[1760535656772,2.606,4080.6,4079.2,0.4441]
[1760535656946,2.45079978,4080.4,4078.9,2.45158551]
[1760535657265,1.728,4080.5,4079.1,2.45152116]
[1760535657466,2.607,4080.4,4079.0,2.69673618]
[1760535657676,1.728,4080.3,4079.0,0.24515855]
[1760535657887,2.4511062,4079.8,4079.4,0.1224]
[1760535658174,2.61,4079.7,4079.4,0.1224]
[1760535658464,2.207,4080.7,4079.5,0.4441]
[1760535658666,2.609,4080.6,4080.0,0.1224]
[1760535658865,2.45034269,4081.1,4078.8,0.6583]
[1760535658866,2.609,4080.5,4080.1,0.2142]
[1760535659074,1.728,4080.3,4080.1,0.48071806]
[1760535659243,2.609,4080.4,4080.1,0.48071806]
[1760535659438,0.071,4095.3,4080.1,0.48071806]
[1760535659439,2.44998672,4081.7,4080.2,0.4441]
[1760535659640,2.45012304,4081.5,4080.2,0.4441]
[1760535659978,2.45088515,4080.2,4078.8,0.2142]
[1760535660267,1.728,4080.0,4079.1,0.2142]
[1760535660476,2.609,4079.9,4079.4,2.45133501]
[1760535660642,2.609,4079.9,4079.5,0.7336435]
[1760535660967,2.609,4079.9,4079.5,0.2895435]
[1760535661270,2.609,4079.9,4079.1,0.2142]
[1760535661493,8.50990329,4079.6,4077.1,0.2142]
[1760535661810,2.45140097,4079.3,4076.8,0.4441]
[1760535661959,0.6336,4079.0,4076.8,0.4441]
[1760535662158,1.728,4079.1,4076.0,0.2142]
[1760535662159,3.717,4078.9,4077.0,0.4441]
[1760535662392,3.717,4078.9,4076.0,0.2142]
[1760535662393,1.728,4078.8,4077.1,0.2142]
[1760535662568,1.7525,4078.8,4077.1,0.2142]
[1760535663216,0.6336,4079.3,4077.1,0.52551954]
[1760535663363,8.83932479,4080.4,4077.7,2.45230698]
[1760535663562,1.7525,4080.3,4077.8,0.4441]
[1760535663795,2.612,4080.2,4078.0,1.728]
[1760535664100,4.17902997,4080.0,4078.8,2.45168904]
[1760535664257,1.728,4080.0,4078.4,2.45190822]
[1760535664461,2.612,4080.1,4078.5,0.41799082]
[1760535664703,2.613,4080.0,4078.8,18.764851]
[1760535664923,2.613,4079.9,4078.9,1.0777]
[1760535665111,2.613,4079.9,4078.4,0.4441]
[1760535665407,2.613,4079.9,4079.4,2.45133268]
[1760535665581,2.613,4079.9,4079.3,2.66560097]
[1760535665788,2.613,4079.9,4079.4,0.2665601]
[1760535665984,2.613,4079.9,4078.9,0.2142]
[1760535666395,2.45077164,4080.4,4078.9,0.2142]
[1760535666698,4.17886418,4080.2,4078.9,0.2142]
[1760535666862,2.45097765,4080.1,4078.9,0.2142]
[1760535667065,2.4505634,4080.7,4078.9,0.2142]
[1760535667066,2.45035314,4081.1,4079.0,7.021042]
[1760535667264,2.614,4081.0,4080.0,2.45092703]
[1760535667474,1.728,4080.8,4079.5,0.4441]
[1760535667677,0.001,4079.9,4079.7,2.45115389]
[1760535667878,2.614,4079.8,4079.2,2.555167]
[1760535668199,2.614,4079.8,4079.3,2.89546073]
[1760535668404,0.001,4079.9,4079.4,0.75506607]
[1760535668603,0.001,4079.9,4079.8,3.08470054]
[1760535668805,0.001,4080.4,4080.3,2.45080018]
[1760535669002,1.141,4080.4,4080.3,2.45080018]
[1760535669303,0.001,4080.4,4080.3,3.65090018]
[1760535669504,0.001,4080.8,4080.7,2.45055995]
[1760535669671,0.001,4080.8,4080.7,6.59893933]
[1760535669870,0.0265,4083.1,4080.8,3.08405175]
[1760535669871,1.104,4082.9,4080.8,3.08405175]
[1760535670077,1.104,4083.4,4081.6,2.44996582]
[1760535670272,1.104,4083.4,4081.7,2.68091284]
[1760535670473,2.44940805,4082.7,4081.7,2.68091284]
[1760535670807,2.44958847,4082.4,4081.8,0.26809128]
[1760535671007,2.44958847,4082.4,4080.7,0.92382038]
[1760535671008,2.4497086,4082.2,4080.7,0.92382038]
[1760535671208,2.44990103,4081.8,4080.7,0.4337]
[1760535671380,2.348,4081.7,4080.7,0.4337]
[1760535672099,2.256,4081.6,4080.7,0.4337]
[1760535672438,0.0275,4084.5,4081.1,0.6336]
[1760535672668,2.612,4083.7,4082.3,2.44957887]
[1760535672868,2.612,4083.7,4082.5,2.44942686]
[1760535672983,2.44896433,4083.4,4082.4,0.47595789]
[1760535673201,5.06079735,4083.7,4082.4,0.47595789]
[1760535673202,2.44889003,4083.5,4082.4,0.47595789]
[1760535673405,1.728,4083.6,4082.4,0.47595789]
[1760535673772,2.612,4083.7,4082.4,0.231]
[1760535674006,2.44898858,4083.4,4082.4,2.68053162]
[1760535674209,4.1768216,4083.6,4082.4,2.68053162]
[1760535674210,1.728,4083.6,4082.4,0.231]
[1760535674394,2.44895906,4083.4,4082.4,0.231]
[1760535674704,2.44887963,4083.5,4082.4,0.231]
[1760535675005,1.728,4083.6,4082.5,0.31143545]
[1760535675006,2.4488268,4083.6,4082.5,0.31143545]
[1760535675312,1.104,4084.8,4082.6,0.4337]
[1760535675480,2.611,4083.5,4082.5,8.261371]
[1760535675671,2.44900657,4083.3,4082.1,15.021562]
[1760535675873,1.1315,4083.8,4082.6,2.44936305]
[1760535675874,1.104,4083.8,4082.6,2.44936305]
[1760535676075,1.104,4083.8,4082.7,0.24493631]
[1760535676274,2.61,4083.7,4082.2,0.4337]
[1760535676473,2.61,4083.7,4082.3,2.44958826]
[1760535676674,2.44898718,4083.4,4082.4,2.44949407]
[1760535676874,2.61,4083.7,4082.2,2.88335476]
[1760535677102,2.61,4083.7,4082.2,0.4337]
[1760535677103,1.728,4083.6,4082.2,0.4337]
[1760535677314,1.728,4083.6,4082.2,2.88334683]
[1760535677479,1.728,4083.4,4082.3,0.92193468]
[1760535677684,1.728,4083.4,4082.8,2.44929577]
[1760535677908,1.104,4083.8,4082.7,0.4337]
[1760535678103,1.104,4083.8,4082.7,2.88305358]
[1760535678315,1.074,4083.7,4082.8,2.44927927]
[1760535678511,1.074,4083.7,4082.7,0.4337]
[1760535678512,1.074,4083.7,4083.0,2.44916973]
[1760535678714,1.074,4083.7,4083.1,0.231]
[1760535679015,1.104,4083.8,4083.3,2.44899958]
[1760535679223,2.609,4083.6,4083.4,0.4337]
[1760535679376,2.44814876,4084.8,4083.7,2.44871004]
[1760535679716,2.608,4084.7,4083.5,0.5561]
[1760535679917,2.44708104,4086.6,4083.5,0.4337]
[1760535680094,2.44814602,4084.8,4083.8,2.44864463]
[1760535680300,2.44814602,4084.8,4083.9,0.48974643]
[1760535680301,2.44822014,4084.6,4083.9,0.48974643]
[1760535680793,2.44822014,4084.6,4083.6,2.44880477]
[1760535681023,2.44822014,4084.6,4083.5,0.4337]
[1760535681196,9.61290329,4087.0,4083.6,0.6336]
[1760535681386,2.47483491,4086.1,4083.8,0.6336]
[1760535681715,2.44785428,4085.3,4084.3,2.44838919]
[1760535681924,2.44796878,4085.1,4084.4,0.231]
[1760535682129,2.606,4085.2,4084.4,0.231]
[1760535682295,1.728,4085.1,4083.7,0.231]
[1760535682498,1.728,4084.8,4083.1,0.231]
[1760535682710,0.0275,4085.0,4083.1,0.231]
[1760535682885,1.7555,4085.7,4083.2,0.43962884]
[1760535683081,1.7555,4085.7,4083.3,0.6336]
[1760535683082,1.728,4085.5,4083.3,0.6336]
[1760535683286,2.44847669,4084.2,4083.2,0.4337]
[1760535683608,2.604,4084.1,4083.3,0.6336]
[1760535683813,2.604,4084.0,4083.5,0.6336]
[1760535683989,2.44802788,4085.0,4083.7,2.4487597]
[1760535684189,5.05104758,4084.9,4083.6,0.4337]
[1760535684403,0.0275,4085.2,4083.1,0.6647]
[1760535684732,0.0535,4085.1,4083.2,0.4337]
[1760535684910,1.728,4085.0,4083.2,0.58663]
[1760535685109,1.728,4085.6,4083.3,1.0673]
[1760535685311,0.001,4084.8,4083.4,0.4337]
[1760535685511,0.001,4084.8,4084.4,2.44833336]
[1760535685704,2.603,4084.7,4083.4,0.4337]
[1760535685903,2.603,4084.7,4083.6,0.6336]
[1760535686312,2.603,4084.7,4083.4,0.4337]
[1760535686515,5.05121414,4084.7,4083.5,0.6336]
[1760535686716,2.603,4084.7,4083.6,0.4337]
[1760535686935,2.603,4084.7,4083.7,0.6336]
[1760535687137,2.603,4084.7,4083.6,0.4337]
[1760535687338,5.05117859,4084.7,4083.4,0.6336]
[1760535687640,2.603,4084.7,4083.7,2.44874938]
[1760535687817,2.603,4084.7,4083.8,2.4486873]
[1760535688019,5.05117492,4084.7,4083.8,2.4486873]
[1760535688215,2.603,4084.7,4083.4,1.0673]
[1760535688418,2.44823126,4084.6,4083.7,2.44871753]
[1760535688622,1.728,4084.6,4083.2,0.15293]
[1760535688824,1.728,4084.6,4082.3,2.68059727]
[1760535688825,2.44900204,4083.3,4082.3,2.68059727]
[1760535689018,0.0285,4084.8,4082.4,0.70175973]
[1760535689334,2.44828008,4084.5,4083.1,2.44906866]
[1760535689539,1.728,4084.3,4083.2,0.231]
[1760535689837,0.001,4084.8,4084.4,0.1224]
[1760535690007,2.601,4084.7,4084.4,0.1224]
[1760535690208,0.001,4084.8,4084.7,0.1224]
[1760535690408,2.602,4084.8,4084.7,0.1224]
[1760535690745,4.33,4084.8,4084.7,0.1224]
[1760535690929,2.602,4084.8,4084.7,0.1224]
[1760535691132,0.001,4084.8,4084.7,2.82762979]
[1760535691329,2.601,4084.8,4084.7,0.37946959]
[1760535691639,2.601,4084.8,4084.7,0.1224]
[1760535692747,5.04910027,4084.8,4084.7,0.1224]
[1760535693137,2.44838036,4084.4,4083.2,2.3927]
[1760535693344,1.728,4084.7,4083.2,0.231]
[1760535693540,0.0275,4084.6,4082.6,0.4337]
[1760535693855,2.448775,4083.7,4082.6,0.4337]
[1760535694149,2.598,4083.6,4083.3,2.44899295]
[1760535694347,2.598,4083.6,4082.3,0.231]
[1760535694348,0.001,4084.8,4083.5,0.231]
[1760535694652,2.44835659,4084.4,4083.5,0.231]
[1760535694817,2.44834895,4084.4,4083.5,2.67986876]
[1760535695215,2.44835336,4084.4,4083.5,2.67987379]
[1760535695520,2.44883292,4083.6,4082.8,0.4337]
[1760535695721,2.6,4083.5,4083.1,2.44907342]
[1760535696039,2.44911705,4084.8,4082.8,0.7220074]
[1760535696040,0.001,4084.8,4083.2,0.4337]
[1760535696350,2.44856923,4084.1,4083.4,0.231]
[1760535696549,5.04859806,4084.0,4083.4,0.231]
[1760535696850,2.6,4084.0,4083.4,0.26801136]
[1760535697053,0.001,4084.8,4083.5,0.6336]
[1760535697213,2.599,4084.7,4084.0,2.44856405]
[1760535697417,2.599,4084.7,4083.4,0.4337]
[1760535697618,2.4483341,4084.5,4083.1,0.231]
[1760535697837,2.44834002,4084.4,4083.3,2.44895654]
[1760535698030,2.44836412,4084.4,4083.5,2.44883459]
[1760535698225,1.7272,4084.6,4083.4,0.51290624]
[1760535698425,2.6,4084.5,4083.5,0.4337]
[1760535698649,0.001,4084.8,4083.6,0.6336]
[1760535698849,0.001,4084.8,4084.7,2.6791602]
[1760535699056,0.001,4084.8,4084.7,3.3127602]
[1760535699221,0.001,4085.3,4085.2,2.44786056]
[1760535699420,0.001,4085.3,4085.2,3.08146056]
[1760535699662,0.023,4085.3,4085.2,3.51516056]
[1760535699859,2.44659205,4087.4,4085.2,3.51516056]
[1760535699860,1.103,4087.6,4085.4,0.6336]
[1760535700018,1.103,4087.6,4085.2,1.0673]
[1760535700019,2.44654303,4087.4,4085.2,1.0673]
[1760535700219,2.44690993,4086.8,4085.8,2.44745735]
[1760535700423,5.04596774,4086.7,4085.9,0.24474574]
[1760535700725,2.599,4086.7,4085.9,0.24474574]
[1760535700919,5.04598527,4086.7,4085.9,0.24474574]